Workbook

Sheet Summary of Funding (hidden)
A1: Date Issued: 28th March 2024 | H1: Last amended: 29th February 2024
A2: COVENTRY CITY COUNCIL
A3: 2024/25 Funding Allocations for Schools | N3: 3
A4: INDICATIVE Summary of Funding
A6: =_xlfn.XLOOKUP("P"&$N$3,'[5]Minimum Funding Guarantee'!$A:$A,'[5]Minimum Funding Guarantee'!$C:$C) -> Allesley Primary School | N6: Checks
A9: =IF((N34+N35)=0,"","***ERROR - CALCULATED ADJUSTMENT DOES NOT EQUAL ACTUAL ***") -> 
A10: Main Funding Elements
A12: School Budget Share 2024/25 | F12: ='Budget Share Statement'!K58 -> 1746326.863 | N12: =F12-'Budget Share Statement'!K58 -> 0
A14: Indicative Early Years Funding 2024/25* (to be updated) | F14: ='EYSFF statement'!K30 -> 153175.9267 | N14: =F14-'EYSFF statement'!K30 -> 0
H16: =SUM(F12,F14) -> 1899502.79 | N16: =N12+N14 -> 0
A18: Other 2024/25 Funding Elements
A20: Indicative Pupil Premium Grant † (excludes LAC & EYPP elements) | F20: =_xlfn.XLOOKUP("P"&$N$3,[6]Allocations!$A$1:$A$65536,[6]Allocations!$U$1:$U$65536) -> 58340
A22: Indicative High Needs Top-up Funding § | F22: =VLOOKUP("P"&$N$3,'[7]HN Top-up Calculation'!$A$2:$R$108,18,FALSE) -> 24771.63
A24: Class Size Funding | F24: =_xlfn.XLOOKUP(N3,'[8]Class size'!$A:$A,'[8]Class size'!$N:$N) -> 0
A26: In-year Admissions Funding | F26: =_xlfn.XLOOKUP("P"&$N$3,'[8]In-year admissions'!$A:$A,'[8]In-year admissions'!$M:$M) -> 0
A28: Disproportionate SEN | F28: =-_xlfn.XLOOKUP("P"&$N$3,[9]Sheet1!$C:$C,[9]Sheet1!$T:$T) -> 21489.73105
A30: Indicative Teachers pay additional grant ^ | F30: =_xlfn.XLOOKUP("P"&N3,[10]Sheet1!$Y:$Y,[10]Sheet1!$X:$X)/7*12 -> 25656
H32: =F20+F22+F24+F26+F28+F30 -> 130257.361
A34: Total Revenue Resources | H34: =H16+H32 -> 2029760.151 | N34: =N12+N14+N20+N22+N24+N16 -> 0
N35: =ROUND(('Budget Share Statement'!O58+'EYSFF statement'!N30+'De-delegation'!O25+'Minimum Funding Level'!O28+'Funding Floor'!N42+'MFG Calculation'!N55),0) -> 0
A37: Notes
A38: This funding summary is intended to give you an overview of the resources allocated to the school for the financial year 2024/25.
A39: Please ensure that you read this budget share pack in conjunction with the explanatory notes which are available to download online.
A41: * Early Years funding has been estimated based on participation at the 23/24 census levels for Sum-24, Aut-24 and Spr-25
A42: - please see the EYSFF statement for further detail.
A43: † Pupil Premium Funding is based on your 2023/24 eligibility position but has been updated to reflect the 2024/25 financial year rates. This
A44: allocation will change once 2024/25 eligibility for Pupil Premium is published by the DFE. We will then update this figure.
A45: § Indicative High Needs Top-up Funding has been calculated based on your number of pupils on high needs bandings in 2023/24.
A46: Figures will change based on the real time movement of pupils during the 2024/25 financial year so will not be final until March 2025.
A47: ^ Teachers pay additional grant allocation is an indicative figure - final allocations are due to be published in April 2024.

Sheet Budget Share Statement (hidden)
A1: ='Summary of Funding'!A1 -> Date Issued: 28th March 2024 | K1: ='Summary of Funding'!H1 -> Last amended: 29th February 2024
A2: COVENTRY CITY COUNCIL
A3: ='Summary of Funding'!A3:H3 -> 2024/25 Funding Allocations for Schools | N3: ='Summary of Funding'!N3 -> 3
A4: INDICATIVE School Budget Share Statement
A6: =_xlfn.XLOOKUP("P"&$N$3,'[5]Minimum Funding Guarantee'!$A:$A,'[5]Minimum Funding Guarantee'!$C:$C) -> Allesley Primary School | O6: Checks
A10: Factors | C10: Factor Measurement | G10: Number of Units | I10: Funding Per Unit | K10: Funding Allocated
I11: £ | K11: £
A12: Basic Entitlement
A13: Funding | C13: Pupil Number: (Oct-23 Census) | G13: =_xlfn.XLOOKUP("P"&$N$3,[11]Data!$A:$A,[11]Data!$G:$G) -> 382 | I13: =[11]Formula!$D$2 -> 3574.50262 | K13: =G13*I13 -> 1365460.001 | O13: =_xlfn.XLOOKUP("P"&$N$3,[11]Formula!$A:$A,[11]Formula!$D:$D)-K13 -> 0
K15: =K13 -> 1365460.001
A17: Deprivation Funding | C17: IDACI Band G: Pupil's IDACI < 0.20 | G17: =_xlfn.XLOOKUP("P"&$N$3,[11]Data!$A:$A,[11]Data!$V:$V) -> 352 | I17: 0 | K17: =G17*I17 -> 0
C18: IDACI Band F: 0.20 ≤ Pupil's IDACI < 0.25 | G18: =_xlfn.XLOOKUP("P"&$N$3,[11]Data!$A:$A,[11]Data!$W:$W) -> 9 | I18: =[11]Formula!$N$2 -> 235.82485 | K18: =G18*I18 -> 2122.42365 | O18: =_xlfn.XLOOKUP("P"&$N$3,[11]Formula!$A:$A,[11]Formula!$N:$N)-K18 -> 0
C19: IDACI Band E: 0.25 ≤ Pupil's IDACI < 0.30 | G19: =_xlfn.XLOOKUP("P"&$N$3,[11]Data!$A:$A,[11]Data!$X:$X) -> 13 | I19: =[11]Formula!$O$2 -> 286.00035 | K19: 3718.00455 | O19: =_xlfn.XLOOKUP("P"&$N$3,[11]Formula!$A:$A,[11]Formula!$O:$O)-K19 -> 0
C20: IDACI Band D: 0.30 ≤ Pupil's IDACI < 0.35 | G20: =_xlfn.XLOOKUP("P"&$N$3,[11]Data!$A:$A,[11]Data!$Y:$Y) -> 5 | I20: =[11]Formula!$P$2 -> 446.56195 | K20: 2232.80975 | O20: =_xlfn.XLOOKUP("P"&$N$3,[11]Formula!$A:$A,[11]Formula!$P:$P)-K20 -> 0
C21: IDACI Band C: 0.35 ≤ Pupil's IDACI < 0.40 | G21: =_xlfn.XLOOKUP("P"&$N$3,[11]Data!$A:$A,[11]Data!$Z:$Z) -> 0 | I21: =[11]Formula!$Q$2 -> 486.70235 | K21: 0 | O21: =_xlfn.XLOOKUP("P"&$N$3,[11]Formula!$A:$A,[11]Formula!$Q:$Q)-K21 -> 0
C22: IDACI Band B: 0.40 ≤ Pupil's IDACI < 0.50 | G22: =_xlfn.XLOOKUP("P"&$N$3,[11]Data!$A:$A,[11]Data!$AA:$AA) -> 1 | I22: =[11]Formula!$R$2 -> 516.80765 | K22: 516.80765 | O22: =_xlfn.XLOOKUP("P"&$N$3,[11]Formula!$A:$A,[11]Formula!$R:$R)-K22 -> 0
C23: IDACI Band A: 0.50 ≤ Pupil's IDACI ≤ 1.00 | G23: =_xlfn.XLOOKUP("P"&$N$3,[11]Data!$A:$A,[11]Data!$AB:$AB) -> 2 | I23: =[11]Formula!$S$2 -> 682.3868 | K23: 1364.7736 | O23: =_xlfn.XLOOKUP("P"&$N$3,[11]Formula!$A:$A,[11]Formula!$S:$S)-K23 -> 0
C24: Free School Meals: (Oct-23 FSM Eligibility) | G24: =_xlfn.XLOOKUP("P"&$N$3,[11]Data!$A:$A,[11]Data!$T:$T) -> 29 | I24: =[11]Formula!$E$2 -> 491.7199 | K24: 14259.8771 | O24: =_xlfn.XLOOKUP("P"&$N$3,[11]Formula!$A:$A,[11]Formula!$E:$E)-K24 -> 0
C25: Free School Meals Ever 6: (Oct-23 FSM Eligibility) | G25: =_xlfn.XLOOKUP("P"&$N$3,[11]Data!$A:$A,[11]Data!$U:$U) -> 30 | I25: =[11]Formula!$F$2 -> 822.8782 | K25: 24686.346 | O25: =_xlfn.XLOOKUP("P"&$N$3,[11]Formula!$A:$A,[11]Formula!$F:$F)-K25 -> 0
K27: =SUM(K17:K25) -> 48901.0423
A29: Prior Attainment Funding | C29: No.pupils not reaching expected level of development | G29: =_xlfn.XLOOKUP("P"&$N$3,[11]Data!$A:$A,[11]Data!$AC:$AC) -> 95.59509411 | I29: =[11]Formula!$G$2 -> 1174.1067 | K29: =G29*I29 -> 112238.8405 | O29: =_xlfn.XLOOKUP("P"&$N$3,[11]Formula!$A:$A,[11]Formula!$G:$G)-K29 -> 0
A31: English as an Additional
A32: Language Funding | C32: No. EAL in compulsory education for 3 years or less | G32: =_xlfn.XLOOKUP("P"&$N$3,[11]Data!$A:$A,[11]Data!$AD:$AD) -> 34.40372671 | I32: =[11]Formula!$H$2 -> 592.0709 | K32: =G32*I32 -> 20369.44544 | O32: =_xlfn.XLOOKUP("P"&$N$3,[11]Formula!$A:$A,[11]Formula!$H:$H)-K32 -> 0
A34: Pupil Mobility Funding | C34: No.pupils in last 3 years who didn’t start school in Sept | G34: =_xlfn.XLOOKUP("P"&$N$3,[11]Data!$A:$A,[11]Data!$AE:$AE) -> 8.08 | I34: =[11]Formula!$I$2 -> 963.3696 | K34: =G34*I34 -> 7784.026368 | O34: =_xlfn.XLOOKUP("P"&$N$3,[11]Formula!$A:$A,[11]Formula!$I:$I)-K34 -> 0
A36: Lump Sum | C36: One set amount for all schools | K36: =_xlfn.XLOOKUP("P"&$N$3,[11]Formula!$A:$A,[11]Formula!$J:$J) -> 134871.744 | O36: =_xlfn.XLOOKUP("P"&$N$3,[11]Formula!$A:$A,[11]Formula!$J:$J)-K36 -> 0
A38: Split Sites Funding | C38: Lump Sum | K38: =_xlfn.XLOOKUP("P"&$N$3,[12]Formula!$A:$A,[12]Formula!$L:$L) -> 0 | O38: =_xlfn.XLOOKUP("P"&$N$3,[11]Formula!$A:$A,[11]Formula!$L:$L)-K38 -> 0
A40: Rates Funding | C40: Estimated 2024/25 rates bill | H40: =_xlfn.XLOOKUP("P"&$N$3,[11]Formula!$A:$A,[11]Formula!$K:$K) -> 53760 | I40: =INDEX([13]Formula!$J:$J,MATCH("P"&$N$3,[13]Formula!$A:$A,0))-E40 -> 128432.64 | K40: =H40 -> 53760 | O40: =_xlfn.XLOOKUP("P"&$N$3,[11]Formula!$A:$A,[11]Formula!$K:$K)-K40 -> 0
A42: Total Formula Factor Funding | K42: =K15+K27+K32+K34+K36+K38+K40+K29 -> 1743385.099 | O42: =_xlfn.XLOOKUP("P"&$N$3,[11]Formula!$A:$A,[11]Formula!$U:$U)-K42 -> 0
A44: Minimum Per Pupil (MPP) Funding Level Allocation | H44: ='Minimum Funding Level'!J28 -> 71394.90057 | O44: =_xlfn.XLOOKUP("P"&$N$3,[11]Formula!$A:$A,[11]Formula!$V:$V)-H44 -> 2.328306437e-10
A46: Total Funding Allocated before Minimum Funding Guarantee (MFG) | K46: =K42+H44 -> 1814780 | O46: =_xlfn.XLOOKUP("P"&$N$3,[11]Formula!$A:$A,[11]Formula!$W:$W)-K46 -> 0
A48: MFG Protection (additional funding/top-slice) | H48: ='MFG Calculation'!J62 -> 0 | O48: =ROUND(_xlfn.XLOOKUP("P"&$N$3,[11]Formula!$A:$A,[11]Formula!$Z:$Z),2)-H48 -> 0
A50: Total Funding Allocated after protection Arrangements | K50: =K46+H48 -> 1814780 | O50: =_xlfn.XLOOKUP("P"&$N$3,[11]Formula!$A:$A,[11]Formula!$AA:$AA)-K50 -> 0
A52: 24/25 De-delegation | C52: See separate 'De-delegation' sheet | H52: ='De-delegation'!K25 -> -14693.13704 | O52: =ROUND(_xlfn.XLOOKUP("P"&$N$3,[11]Formula!$A:$A,[11]Formula!$AB:$AB),2)-H52 -> -0.002963344396
A54: INDICATIVE 24/25 Risk Protection Arrangement Deduction | H54: =-IFERROR(_xlfn.XLOOKUP("P"&$N$3,'[14]LAMS Data'!$AH:$AH,'[14]LAMS Data'!$AE:$AE),0) -> 0
A56: 24/25 Business Rates Deduction | H56: =-H40 -> -53760
A58: Total Funding Allocated after MFG, De-delegation and RPA & NNDR Adjustments | K58: =K50+H52+H54+H56 -> 1746326.863 | O58: =ROUND(_xlfn.XLOOKUP("P"&$N$3,[11]Formula!$A:$A,[11]Formula!$AC:$AC),2)-K58+H56+H54 -> -0.002963344334
A60: Notes
A61: If you have chosen to join the DfE Risk Protection Arrangement, the value of your charge has been deducted from your budget share.
A62: This figure is currently indicative based on the 2023/24 deduction. Once deductions are published, this figure will be updated

Sheet Minimum Funding Level (hidden)
A1: ='Summary of Funding'!A1 -> Date Issued: 28th March 2024 | K1: ='Summary of Funding'!H1 -> Last amended: 29th February 2024
A2: COVENTRY CITY COUNCIL
A3: ='Summary of Funding'!A3:H3 -> 2024/25 Funding Allocations for Schools | N3: ='Summary of Funding'!N3 -> 3
A4: Calculation of Minimum Per Pupil (MPP) Funding Level
A6: =_xlfn.XLOOKUP("P"&$N$3,'[5]Minimum Funding Guarantee'!$A:$A,'[5]Minimum Funding Guarantee'!$C:$C) -> Allesley Primary School | N6: Checks
G9: £ | J9: £
A10: NFF Minimum per pupil funding rate | G10: ='[11]Minimum Per Pupil'!$D$3 -> 4610 | N10: ='[11]Minimum Per Pupil'!$D$3-G10 -> 0
A12: October 2023 Pupil Numbers | G12: =_xlfn.XLOOKUP("P"&$N$3,'[11]Minimum Per Pupil'!$A:$A,'[11]Minimum Per Pupil'!$D:$D) -> 382 | N12: =_xlfn.XLOOKUP("P"&$N$3,'[11]Minimum Per Pupil'!$A:$A,'[11]Minimum Per Pupil'!$D:$D)-G12 -> 0
A14: Minimum Funding Level (MFL) | F14: [A] | J14: =G10*G12 -> 1761020 | N14: =_xlfn.XLOOKUP("P"&$N$3,'[11]Minimum Per Pupil'!$A:$A,'[11]Minimum Per Pupil'!$E:$E)-J14 -> 0
A17: Total Formula Factor Funding | G17: ='Budget Share Statement'!K42 -> 1743385.099 | N17: =_xlfn.XLOOKUP("P"&$N$3,'[11]Minimum Per Pupil'!$A:$A,'[11]Minimum Per Pupil'!$G:$G)-G17 -> 0
A19: Less: exempt premises factors
A20: 2024/25 NNDR | G20: =_xlfn.XLOOKUP("P"&$N$3,[11]Formula!$A:$A,[11]Formula!$K:$K) -> 53760 | H20: =INDEX([13]Formula!$K:$K,MATCH("P"&$N$3,[13]Formula!$A:$A,0))-A20 ->  | N20: =_xlfn.XLOOKUP("P"&$N$3,[11]Formula!$A:$A,[11]Formula!$K:$K)-G20 -> 0
A22: 2024/25 Split Site | G22: =_xlfn.XLOOKUP("P"&$N$3,[11]Formula!$A:$A,[11]Formula!$L:$L) -> 0 | H22: =INDEX([13]Formula!$K:$K,MATCH("P"&$N$3,[13]Formula!$A:$A,0))-A22 ->  | N22: =_xlfn.XLOOKUP("P"&$N$3,[11]Formula!$A:$A,[11]Formula!$L:$L)-G22 -> 0
A25: 2024/25 Funding for MFL comparison | F25: [B] | J25: =G17-SUM(G20:G22) -> 1689625.099 | N25: =_xlfn.XLOOKUP("P"&$N$3,'[11]Minimum Per Pupil'!$A:$A,'[11]Minimum Per Pupil'!$K:$K)-J25 -> 0
A28: MFL shortfall to be funded [B] - [A] | F28: = [B] - [A] | J28: =IF(J25<J14,J14-J25,0) -> 71394.90057 | N28: =_xlfn.XLOOKUP("P"&$N$3,'[11]Minimum Per Pupil'!$A:$A,'[11]Minimum Per Pupil'!$M:$M)-J28 -> 2.328306437e-10

Sheet MFG Calculation (hidden)
A1: ='Summary of Funding'!A1 -> Date Issued: 28th March 2024 | K1: ='Summary of Funding'!H1 -> Last amended: 29th February 2024
A2: COVENTRY CITY COUNCIL
A3: ='Summary of Funding'!A3:H3 -> 2024/25 Funding Allocations for Schools | N3: ='Summary of Funding'!N3 -> 3
A4: Calculation of Minimum Funding Guarantee
A6: =_xlfn.XLOOKUP("P"&$N$3,[5]Formula!$A:$A,[5]Formula!$C:$C) -> Allesley Primary School | N6: Checks
A9: Baseline | C9: =IF(N55>=0," ","DOES NOT BALANCE") ->  | G9: £ | J9: £
A11: Final Budget Share 2023/24 (Excluding Early Years) | J11: =_xlfn.XLOOKUP("P"&$N$3,'[11]Minimum Funding Guarantee'!$A:$A,'[11]Minimum Funding Guarantee'!$H:$H) -> 1600252.578
A13: Less:
A14: 2023/24 Rates Funding | G14: =_xlfn.XLOOKUP("P"&$N$3,'[11]Minimum Funding Guarantee'!$A:$A,'[11]Minimum Funding Guarantee'!$J:$J) -> 45824 | H14: =_xlfn.XLOOKUP("P"&$N$3,'[11]Minimum Funding Guarantee'!$A:$A,'[11]Minimum Funding Guarantee'!$H:$H) -> 1600252.578
A16: 2024/25 Lump Sum | G16: =_xlfn.XLOOKUP("P"&$N$3,'[11]Minimum Funding Guarantee'!$A:$A,'[11]Minimum Funding Guarantee'!$I:$I) -> 134871.744 | H16: =INDEX('[13]Minimum Funding Guarantee'!$H:$H,MATCH("P"&$N$3,'[13]Minimum Funding Guarantee'!$A:$A,0)) -> 1596002.957
A18: 2023/24 Split Site | G18: =_xlfn.XLOOKUP("P"&$N$3,'[12]Minimum Funding Guarantee'!$A:$A,'[12]Minimum Funding Guarantee'!$L:$L) -> 0 | H18: =INDEX('[13]Minimum Funding Guarantee'!$H:$H,MATCH("P"&$N$3,'[13]Minimum Funding Guarantee'!$A:$A,0)) -> 1596002.957 | J18: =-SUM(G14,G16,G18) -> -180695.744
A20: Add:
A21: 2023/24 Supplementary Grant | G21: =_xlfn.XLOOKUP("P"&$N$3,'[11]Minimum Funding Guarantee'!$A:$A,'[11]Minimum Funding Guarantee'!$M:$M) -> 49581.2219 | H21: =INDEX('[13]Minimum Funding Guarantee'!$H:$H,MATCH("P"&$N$3,'[13]Minimum Funding Guarantee'!$A:$A,0)) -> 1596002.957 | J21: =G21 -> 49581.2219
A23: Adjusted Budget Share 2023/24 | J23: =J11+J18+J21 -> 1469138.056 | N23: =_xlfn.XLOOKUP("P"&$N$3,'[11]Minimum Funding Guarantee'!$A:$A,'[11]Minimum Funding Guarantee'!$N:$N)-J23 -> 0
A26: Guaranteed Unit Funding Calculation | J26: £
A28: Adjusted Budget Share 2023/24 | G28: =J23 -> 1469138.056
A30: October 2022 Pupil Number | G30: =_xlfn.XLOOKUP("P"&$N$3,'[11]Minimum Funding Guarantee'!$A:$A,'[11]Minimum Funding Guarantee'!$D:$D) -> 352 | H30: =INDEX('[13]Minimum Funding Guarantee'!$H:$H,MATCH("P"&$N$3,'[13]Minimum Funding Guarantee'!$A:$A,0)) -> 1596002.957
A32: Adjusted Budget Share 2023/24 Per Pupil | J32: =G28/G30 -> 4173.687658 | N32: =_xlfn.XLOOKUP("P"&$N$3,'[11]Minimum Funding Guarantee'!$A:$A,'[11]Minimum Funding Guarantee'!$O:$O)-J32 -> 0
A34: Minimum Funding Guarantee Protection Level | G34: ='[11]Minimum Funding Guarantee'!$R$3-1 -> 0.004202458574
A36: 2024/25 Guaranteed Unit Funding | J36: =J32*(1+G34) -> 4191.227408
A39: Guaranteed Funding Level Calculation
A41: 2024/25 Guaranteed Unit Funding | G41: =J36 -> 4191.227408
A43: October 2023 Pupil Number | G43: =_xlfn.XLOOKUP("P"&$N$3,'[11]Minimum Funding Guarantee'!$A:$A,'[11]Minimum Funding Guarantee'!$E:$E) -> 382 | H43: =INDEX('[13]Minimum Funding Guarantee'!$H:$H,MATCH("P"&$N$3,'[13]Minimum Funding Guarantee'!$A:$A,0)) -> 1596002.957
A45: 2024/25 Guaranteed Funding Level | J45: =G41*G43 -> 1601048.87
A47: Add:
A48: 2024/25 Rates | G48: =_xlfn.XLOOKUP("P"&$N$3,'[11]Minimum Funding Guarantee'!$A:$A,'[11]Minimum Funding Guarantee'!$Z:$Z) -> 53760 | H48: =INDEX('[13]Minimum Funding Guarantee'!$H:$H,MATCH("P"&$N$3,'[13]Minimum Funding Guarantee'!$A:$A,0)) -> 1596002.957
A50: 2024/25 Lump Sum | G50: =_xlfn.XLOOKUP("P"&$N$3,'[11]Minimum Funding Guarantee'!$A:$A,'[11]Minimum Funding Guarantee'!$Y:$Y) -> 134871.744 | H50: =INDEX('[13]Minimum Funding Guarantee'!$H:$H,MATCH("P"&$N$3,'[13]Minimum Funding Guarantee'!$A:$A,0)) -> 1596002.957
A52: 2024/25 Split Site | G52: =_xlfn.XLOOKUP("P"&$N$3,'[11]Minimum Funding Guarantee'!$A:$A,'[11]Minimum Funding Guarantee'!$AA:$AA) -> 0 | H52: =INDEX('[13]Minimum Funding Guarantee'!$H:$H,MATCH("P"&$N$3,'[13]Minimum Funding Guarantee'!$A:$A,0)) -> 1596002.957 | J52: =SUM(G48,G50) -> 188631.744
A55: 2024/25 Minimum Funding Guarantee | J55: =J45+J52 -> 1789680.614 | N55: =_xlfn.XLOOKUP("P"&$N$3,'[11]Minimum Funding Guarantee'!$A:$A,'[11]Minimum Funding Guarantee'!$Q:$Q)-J55 -> 0
A58: 2024/25 Minimum Funding Guarantee | G58: =J45+J52 -> 1789680.614
A60: 2024/25 Total Formula Funding allocated pre-MFG | G60: ='Budget Share Statement'!K46 -> 1814780
A62: 2024/25 MFG Protection (additional funding/top-slice) | J62: =_xlfn.XLOOKUP("P"&$N$3,'[11]Minimum Funding Guarantee'!$A:$A,'[11]Minimum Funding Guarantee'!$V:$V) -> 0 | N62: =_xlfn.XLOOKUP("P"&$N$3,'[11]Minimum Funding Guarantee'!$A:$A,'[11]Minimum Funding Guarantee'!$V:$V)-J62 -> 0
A64: Note:
A65: The Minimum Funding Guarantee is compared with your Budget Share before 2024/25 de-delegated budgets are removed.

Sheet De-delegation (hidden)
A1: ='Summary of Funding'!A1 -> Date Issued: 28th March 2024 | K1: ='Summary of Funding'!H1 -> Last amended: 29th February 2024
A2: COVENTRY CITY COUNCIL
A3: ='Summary of Funding'!A3:H3 -> 2024/25 Funding Allocations for Schools | N3: ='Summary of Funding'!N3 -> 3
A4: ="De-Delegation Detail" -> De-Delegation Detail
A6: =_xlfn.XLOOKUP("P"&$N$3,[5]Formula!$A:$A,[5]Formula!$C:$C) -> Allesley Primary School | O6: Checks
A10: Factors | C10: Factor Measurement | G10: Number of Units | I10: Funding Per Unit | K10: Funding Allocated
I11: £ | K11: £
A12: Basic Entitlement
A13: Funding
A14: Maternity Cover | C14: Pupil Number: (Oct-23 Census) | G14: =_xlfn.XLOOKUP("P"&$N$3,[11]Data!$A:$A,[11]Data!$D:$D) -> 382 | I14: =-'[11]New Del & De-Del'!$G$9 -> -29.0106646 | K14: =G14*I14 -> -11082.07388 | O14: =ROUND(_xlfn.XLOOKUP("P"&$N$3,'[11]New Del & De-Del'!$A:$A,'[11]New Del & De-Del'!$K:$K)+K14,0) -> 0
A15: Trade Union Facility | C15: Pupil Number: (Oct-23 Census) | G15: =_xlfn.XLOOKUP("P"&$N$3,[11]Data!$A:$A,[11]Data!$D:$D) -> 382 | I15: =-'[11]New Del & De-Del'!$G$10 -> -4 | K15: =G15*I15 -> -1528 | O15: =ROUND(_xlfn.XLOOKUP("P"&$N$3,'[11]New Del & De-Del'!$A:$A,'[11]New Del & De-Del'!$L:$L)+K15,0) -> 0
K17: =SUM(K14:K15) -> -12610.07388 | O17: =ROUND(_xlfn.XLOOKUP("P"&$N$3,'[11]New Del & De-Del'!$A:$A,'[11]New Del & De-Del'!$D:$D)+K17,0) -> 0
A18: Deprivation Funding
A19: Free School Meal Eligibility | C19: Free School Meals: (Oct-23 FSM Eligibility) | G19: =_xlfn.XLOOKUP("P"&$N$3,[11]Data!$A:$A,[11]Data!$T:$T) -> 29 | I19: =-'[11]New Del & De-Del'!$G$7 -> -2.633151206 | K19: =G19*I19 -> -76.36138498 | O19: =ROUND(_xlfn.XLOOKUP("P"&$N$3,'[11]New Del & De-Del'!$A:$A,'[11]New Del & De-Del'!$E:$E)+K19,0) -> 0
A21: English as an Additional
A22: Language Funding
A23: EMAS: New Arrivals Grant | C23: EAL3: EAL in child's 1st 3 years of compulsory education | G23: =_xlfn.XLOOKUP("P"&$N$3,[11]Data!$A:$A,[11]Data!$AD:$AD) -> 34.40372671 | I23: =-'[11]New Del & De-Del'!$G$12 -> -58.328035 | K23: =G23*I23 -> -2006.701776 | O23: =ROUND(_xlfn.XLOOKUP("P"&$N$3,'[11]New Del & De-Del'!$A:$A,'[11]New Del & De-Del'!$F:$F)+K23,0) -> 0
A25: Total De-Delegation | K25: =K17+K19+K23 -> -14693.13704 | O25: =ROUND(_xlfn.XLOOKUP("P"&$N$3,'[11]New Del & De-Del'!$A:$A,'[11]New Del & De-Del'!$H:$H)+K25,0) -> 0

Sheet EYSFF statement (hidden)
A1: ='Summary of Funding'!A1 -> Date Issued: 28th March 2024 | K1: ='Summary of Funding'!H1 -> Last amended: 29th February 2024
A2: COVENTRY CITY COUNCIL
A3: ='Summary of Funding'!A3:H3 -> 2024/25 Funding Allocations for Schools | N3: ='Summary of Funding'!N3 -> 3
A4: INDICATIVE Early Years Funding Statement
A6: =_xlfn.XLOOKUP("P"&$N$3,[5]Formula!$A:$A,[5]Formula!$C:$C) -> Allesley Primary School | N6: Checks
A9: School Data | E9: Early Years Rates
E10: Free Entitlement | G10: Extended Entitlement
A11: January 2023 Headcount | E11: =_xlfn.IFNA(_xlfn.XLOOKUP("P"&$N$3,'[15]Early Years Formula'!$A:$A,'[15]Early Years Formula'!$D:$D),0) -> 32 | G11: =_xlfn.IFNA(_xlfn.XLOOKUP("P"&$N$3,'[15]Early Years Formula'!$A:$A,'[15]Early Years Formula'!$D:$D),0) -> 32
A12: IDACI based on January 2023 census | E12: =_xlfn.IFNA(_xlfn.XLOOKUP("P"&$N$3,'[15]Early Years Formula'!$A:$A,'[15]Early Years Formula'!$E:$E),0) -> 0.09671875 | G12: =_xlfn.IFNA(_xlfn.XLOOKUP("P"&$N$3,'[15]Early Years Formula'!$A:$A,'[15]Early Years Formula'!$E:$E),0) -> 0.09671875
A13: Universal Base Rate | E13: 4.93 | G13: 4.93
A14: Universal Deprivation Rate | E14: 1.48 | G14: 1.48
E17: Summer Term 2024 | G17: Autumn Term 2024 | I17: Spring Term 2025 | K17: Whole Financial Year
E18: (12 Weeks) | G18: (14 Weeks) | I18: (12 Weeks) | K18: (38 Weeks)
E19: (Per May 23 census) | G19: (Per Oct 23 census) | I19: (Per Jan 24 census)
A20: Formula Factors
A21: Free Entitlement Headcount | E21: =_xlfn.IFNA(_xlfn.XLOOKUP("P"&$N$3,'[15]Early Years Formula'!$A:$A,'[15]Early Years Formula'!$I:$I),0) -> 33 | G21: =_xlfn.IFNA(_xlfn.XLOOKUP("P"&$N$3,'[15]Early Years Formula'!$A:$A,'[15]Early Years Formula'!$P:$P),0) -> 32 | I21: =_xlfn.IFNA(_xlfn.XLOOKUP("P"&$N$3,'[15]Early Years Formula'!$A:$A,'[15]Early Years Formula'!$W:$W),0) -> 32
A22: Free Entitlement Hours Provided | E22: =_xlfn.IFNA(_xlfn.XLOOKUP("P"&$N$3,'[15]Early Years Formula'!$A:$A,'[15]Early Years Formula'!$H:$H),0) -> 5916 | G22: =_xlfn.IFNA(_xlfn.XLOOKUP("P"&$N$3,'[15]Early Years Formula'!$A:$A,'[15]Early Years Formula'!$O:$O),0)/15*14 -> 6860 | I22: =_xlfn.IFNA(_xlfn.XLOOKUP("P"&$N$3,'[15]Early Years Formula'!$A:$A,'[15]Early Years Formula'!$V:$V),0) -> 5390
A23: Extended Entitlement Headcount | E23: =_xlfn.IFNA(_xlfn.XLOOKUP("P"&$N$3,'[15]Early Years Formula'!$A:$A,'[15]Early Years Formula'!$K:$K),0) -> 23 | G23: =_xlfn.IFNA(_xlfn.XLOOKUP("P"&$N$3,'[15]Early Years Formula'!$A:$A,'[15]Early Years Formula'!$R:$R),0) -> 21 | I23: =_xlfn.IFNA(_xlfn.XLOOKUP("P"&$N$3,'[15]Early Years Formula'!$A:$A,'[15]Early Years Formula'!$Y:$Y),0) -> 21
A24: Extended Entitlement Hours Provided | E24: =_xlfn.IFNA(_xlfn.XLOOKUP("P"&$N$3,'[15]Early Years Formula'!$A:$A,'[15]Early Years Formula'!$J:$J),0) -> 4140 | G24: =_xlfn.IFNA(_xlfn.XLOOKUP("P"&$N$3,'[15]Early Years Formula'!$A:$A,'[15]Early Years Formula'!$Q:$Q),0) -> 4590 | I24: =_xlfn.IFNA(_xlfn.XLOOKUP("P"&$N$3,'[15]Early Years Formula'!$A:$A,'[15]Early Years Formula'!$X:$X),0) -> 3327.5
A26: Base Rate Funding | E26: =IFERROR((E22+E24)*$E13,0) -> 49576.08 | G26: =IFERROR((G22+G24)*$E13,0) -> 56448.5 | I26: =IFERROR((I22+I24)*$E13,0) -> 42977.275
A28: Deprivation Funding | E28: =IFERROR((E21+E23)*$E$14*15*12*$E$12,0) -> 1442.889 | G28: =IFERROR((G21+G23)*$E$14*15*12*$E$12,0) -> 1365.591375 | I28: =IFERROR((I21+I23)*$E$14*15*12*$E$12,0) -> 1365.591375
A30: Total 2024/25 Funding Under EYSFF (£) | E30: =E28+E26 -> 51018.969 | G30: =G28+G26 -> 57814.09138 | I30: =I28+I26 -> 44342.86637 | K30: =E30+G30+I30 -> 153175.9267
A33: Note:
A34: This Early Years budget has been estimated based on full participation at the 23/24 census levels for Sum-24, Aut-24
A35: and Spr-25 using the 24/25 hourly rates.
A37: At this point in time, you will have the best knowledge of relevant pupil numbers and as such are in the best position to estimate
A38: what the EYSFF funding position will be. Work with your SFO's to make an estimate and work through the financial implications.
A40: Your actual Early Years funding will be updated through the year to reflect the actual provision delivered as recorded on the
A41: Summer-24, Autumn-24 and Spring-25 school census information. As in previous years, this means that your Early Years
A42: funding will not be finalised until after the Spring 2025 census has been finalised.

Sheet Further Delegation Info (hidden)
A1: ='Summary of Funding'!A1 -> Date Issued: 28th March 2024 | H1: ='Summary of Funding'!H1 -> Last amended: 29th February 2024 | N1: ID
A2: COVENTRY CITY COUNCIL
A3: ='Summary of Funding'!A3:H3 -> 2024/25 Funding Allocations for Schools
A4: Further Delegation Information
A6: All Schools
A9: The 2013/14 School Funding Reform required local authorities to delegate some centrally retained DSG budgets to schools; those budgets are listed below in the columns headed "Delegated in 2013/14" for your information.
A11: For 2024/25 maintained schools have opted to return some of this funding to the Local Authority to continue central provision of the relevant services. The delegated budget available to each maintained school therefore excludes these returned budgets. The relevant amounts are listed below in the columns headed "De-delegation in 2024/25" for your reference.
A17: S251 line | B17: Further Delegation Areas | C17: Delegated in 2013/14 | F17: De-delegation in 2024/25
C18: Primary (all) £ | D18: Secondary (all) £ | E18: Total (all) £ | F18: Primary Maintained £ | G18: Secondary Maintained £ | H18: Total Maintained £
A19: 1.1.4 | B19: Free school meal eligibility | C19: 20899.32112 | D19: 11151.53862 | E19: 32050.85975 | F19: ='[11]New Del & De-Del'!I7 -> 12720.75348 | G19: 0 | H19: =SUM(F19:G19) -> 12720.75348
A20: 1.1.7 | B20: Licences/subscriptions | C20: 56639.72318 | D20: 35735.64289 | E20: 92375.36607 | F20: ='[11]New Del & De-Del'!I8 -> 0 | G20: 0 | H20: =SUM(F20:G20) -> 0
A21: 1.1.8 | B21: Maternity/special staffing suspension | C21: 356766.1768 | D21: 225094.1208 | E21: 581860.2976 | F21: ='[11]New Del & De-Del'!I9 -> 551318.67 | G21: 0 | H21: 551318.67
A22: 1.1.9 | B22: Trade Union facility | C22: 195944.4399 | D22: 123627.026 | E22: 319571.4659 | F22: ='[11]New Del & De-Del'!I10 -> 76016 | G22: 0 | H22: 76016
A23: 1.1.10 | B23: School Improvement | C23: 0 | D23: 0 | E23: 0 | F23: ='[11]New Del & De-Del'!I11 -> 0 | G23: 0 | H23: 0
A24: 1.1.3 | B24: Ethnic Minority Acheivement Service (EMAS) | C24: 991053 | D24: 284303 | E24: 1275356 | F24: ='[11]New Del & De-Del'!I12 -> 247246.3786 | G24: 0 | H24: 247246.3786
A25: 1.1.2 | B25: Behaviour support services | C25: 310504 | D25: 256781 | E25: 567285 | F25: ='[11]New Del & De-Del'!I13 -> 0 | G25: =-'[16]New Del & De-Del'!$J13 -> 0 | H25: 0
B26: Totals | C26: =SUM(C19:C25) -> 1931806.661 | D26: 936692.3283 | E26: 2868498.989 | F26: 887301.8021 | G26: 0 | H26: 887301.8021 | J26: =H26-'[11]New Del & De-Del'!$K$14 -> 0

Sheet ISB (hidden)
A1: ='Summary of Funding'!A1 -> Date Issued: 28th March 2024 | F1: ='Summary of Funding'!H1 -> Last amended: 29th February 2024 | J1: ID
A2: COVENTRY CITY COUNCIL
A3: 2023/24 Funding Allocations for Schools
A5: Individual Schools Budget (ISB) 2023/24
A8: This page shows how the Individual Schools Budget (ISB), which is the total of all schools block delegated budget shares, has changed from the previous year. It shows the financial effect, in overall budget terms, of policy and funding decisions in terms of the increased or decreased level of resources for schools. The final ISB figure represents the total level of resources which go into the Fair Funding Formula to produce schools budget shares.
C14: Schools | D14: Schools
C15: Block | D15: Block
C16: (Primary) | D16: (Secondary)
C17: £ | D17: £
B19: FINAL ISB 2023/24 | C19: =[17]Sheet2!$B$2 -> 152715110.6 | D19: =[17]Sheet2!$C$2 -> 139305128
B21: Resource Adjustments
B22: De-delegation adjustments | C22: =[17]Sheet2!$B$8 -> 67766.56514
B23: NFF - Additional resource | C23: =[17]Sheet2!$B$4 -> 2172678.642 | D23: =[17]Sheet2!$C$4 -> 2047563.091
B24: NFF - mainstream schools additional grant rolled into DSG | C24: =[17]Sheet2!$B$3 -> 5009787.442 | D24: =[17]Sheet2!$C$3 -> 4775317.65
B26: Education Service PPR
B27: Pupil number changes | C27: =[17]Sheet2!$B$5 -> 2016291.976 | D27: =[17]Sheet2!$C$5 -> 5415017.846
B28: Pupil data changes | C28: =[17]Sheet2!$B$6 -> 810474.2765 | D28: =[17]Sheet2!$C$6 -> 573948.5545
B29: Capping & scaling | C29: =[17]Sheet2!$B$7 -> -212764.3554 | D29: =[17]Sheet2!$C$7 -> -282065.3652
B31: FINAL ISB 2023/24 | C31: =SUM(C19:C30) -> 162579345.1 | D31: =SUM(D19:D30) -> 151834909.7
A35: If you have any queries about any of this information, please contact Paul Hammond 7697 2635

Sheet LogIn (hidden)
A1: User Name | B1: Password | C1: ID
A2: Alderman's Green | B2: NcR96Na | C2: 1
A3: Aldermoor Farm | B3: 8UBcN4 | C3: 2
A4: Allesley | B4: uE98HX | C4: 3
A5: Allesley Hall | B5: c2r66H | C5: 4
A6: Broad Heath | B6: 94ctnJ | C6: 5
A7: Cannon Park | B7: 4V8gK4 | C7: 6
A8: Charter | B8: bHkpG8a | C8: 7
A9: Clifford Bridge | B9: VksmRa1a | C9: 8
A10: Coundon Primary | B10: 4Y428c | C10: 9
A11: Courthouse Green | B11: BE75nX1a | C11: 10
A12: Earlsdon | B12: ZkcST6 | C12: 11
A13: Eastern Green Junior | B13: 24x4Xc | C13: 12
A14: Edgewick | B14: R3kRR4 | C14: 13
A15: Ernesford Grange | B15: GKD5A2 | C15: 14
A16: Finham | B16: 9TWJzm1a | C16: 15
A17: Frederick Bird | B17: agw9kda | C17: 16
A18: Gosford Park | B18: cuxXcd | C18: 17
A19: Grange Farm | B19: V2DGxe | C19: 18
A20: Grangehurst | B20: aFbkW3 | C20: 19
A21: Hearsall | B21: 3JcVC31a | C21: 20
A22: Henley Green | B22: J5cwAZ | C22: 21
A23: Hill Farm Academy | B23: 8S7cc81a | C23: 22
A24: Holbrook | B24: GkEHwt | C24: 23
A25: Hollyfast | B25: D4N45K | C25: 24
A26: Howes | B26: ccAeb5 | C26: 25
A27: John Gulson | B27: 26cA4V | C27: 26
A28: John Shelton | B28: B8cds4 | C28: 27
A29: Joseph Cash | B29: 33GsH6 | C29: 28
A30: Keresley Grange | B30: RPPyVD1a | C30: 29
A31: Limbrick Wood | B31: uk7NEQa | C31: 30
A32: Little Heath | B32: Av3kpb | C32: 31
A33: Longford Park | B33: 79byb7 | C33: 32
A34: Manor Park | B34: MkRSqT | C34: 33
A35: Moathouse | B35: 7URcPj | C35: 34
A36: Moseley | B36: FHQ99Q | C36: 35
A37: Mount Nod | B37: t9C84k | C37: 36
A38: Parkgate | B38: vk7KgW1a | C38: 37
A39: Parkhill | B39: CDXegf | C39: 38
A40: Pearl Hyde | B40: j3MNSS1a | C40: 39
A41: Potters Green | B41: YEy8sy | C41: 40
A42: Radford Academy | B42: p43M6w1a | C42: 41
A43: Ravensdale | B43: APVTV2 | C43: 42
A44: Richard Lee | B44: hAt28j1a | C44: 43
A45: Sir Frank Whittle | B45: GX72Yc1a | C45: 44
A46: St. Christopher | B46: 47967b | C46: 45
A47: Southfields | B47: 5Wbz28 | C47: 46
A48: Sowe Valley | B48: CmbnbG | C48: 47
A49: Spon Gate | B49: kyX882 | C49: 48
A50: Stanton Bridge | B50: 334HJR1a | C50: 49
A51: Stivichall | B51: 7Qc6H3 | C51: 50
A52: Stoke | B52: 6R28Wf | C52: 51
A53: Stoke Heath | B53: abbM4V | C53: 52
A54: Templars | B54: X23zbq | C54: 53
A55: Whitley Abbey | B55: 64t3u4 | C55: 54
A56: Whitmore Park | B56: bY76ab | C56: 55
A57: Whoberley Hall | B57: Q6kTTB | C57: 56
A58: Willenhall Community | B58: rHAW8H | C58: 57
A59: Wyken Croft | B59: U4pEJ3 | C59: 58
A60: All Saints' CE | B60: BgJH5H | C60: 59
A61: All Souls' RC | B61: 5dQG7T | C61: 60
A62: Christ the King RC Primary | B62: AbcSYP1a | C62: 61
A63: Corpus Christi RC | B63: E446Hn1a | C63: 62
A64: St Laurance's CE Academy | B64: j877qE1a | C64: 63
A65: Good Shepherd RC | B65: ZX6bRM1a | C65: 64
A66: Holy Family RC | B66: y8FdX4 | C66: 65
A67: Leigh CE | B67: y5ZNQz1a | C67: 66
A68: Our Lady of the Assumption RC | B68: 6f89MQ | C68: 67
A69: Sacred Heart RC | B69: 4n6E5w1a | C69: 68
A70: St. Andrew's CE Infant | B70: zS5569 | C70: 69
A71: St. Anne's RC | B71: H2YK64 | C71: 70
A72: St. Augustine's RC | B72: cAb7FY1a | C72: 71
A73: St. Bartholomew's Academy | B73: CPKbKb1a | C73: 72
A74: St. Elizabeth's RC | B74: 2s47541a | C74: 73
A75: St. Gregory's RC | B75: YHzVS61a | C75: 74
A76: St. John Fisher RC | B76: G97Ncj1a | C76: 75
A77: St. John Vianney RC | B77: RkP3wb1a | C77: 76
A78: St. John's CE | B78: WV25551a | C78: 77
A79: St. Mary's & St. Benedict's RC | B79: hNW6cM | C79: 78
A80: St. Osburg's RC | B80: D7UP4r | C80: 79
A81: St. Patrick's RC | B81: 6bP7aV1a | C81: 80
A82: Sts. Peter & Paul RC | B82: K43Jb31a | C82: 81
A83: St. Thomas More RC | B83: Kc3rR81a | C83: 82
A84: Stretton CE Academy | B84: BMJT831a | C84: 83
A85: Walsgrave CE | B85: DM93SH1a | C85: 84

Sheet LoginPage

Sheet Funding Floor (hidden)
A1: ='Summary of Funding'!A1 -> Date Issued: 28th March 2024 | L1: ='Summary of Funding'!H1 -> Last amended: 29th February 2024
A2: COVENTRY CITY COUNCIL - PEOPLE'S DIRECTORATE
A3: ='Summary of Funding'!A3:H3 -> 2024/25 Funding Allocations for Schools | N3: ='Summary of Funding'!N3 -> 3
A4: Calculation of Funding Floor
A6: =VLOOKUP(("P"&N3),[18]Formula!$A$10:$X$96,3,FALSE) -> Allesley | N6: Checks
I9: £ | L9: £
A11: 2020/21 Total funding allocated after MFL | L11: =VLOOKUP(("P"&$N$3),'[19]Funding Floor'!$A$3:$U$90,6,FALSE) -> 1438986.083 | N11: =VLOOKUP(("P"&$N$3),'[19]Funding Floor'!$A$3:$U$90,6,FALSE)-L11 -> 0
A13: Less:
A14: 2020/21 Mobility | I14: =VLOOKUP(("P"&$N$3),'[19]Funding Floor'!$A$3:$U$90,7,FALSE) -> 0 | J14: =VLOOKUP(("P"&$N$3),'[19]Funding Floor'!$A$3:$U$90,6,FALSE) -> 1438986.083 | N14: =VLOOKUP(("P"&$N$3),'[19]Funding Floor'!$A$3:$U$90,7,FALSE)-I14 -> 0
A16: 2020/21 Lump Sum | I16: =VLOOKUP(("P"&$N$3),'[19]Funding Floor'!$A$3:$U$90,8,FALSE) -> 110364.1 | J16: =VLOOKUP(("P"&$N$3),'[19]Funding Floor'!$A$3:$U$90,6,FALSE) -> 1438986.083 | N16: =VLOOKUP(("P"&$N$3),'[19]Funding Floor'!$A$3:$U$90,8,FALSE)-I16 -> 0
A18: 2020/21 Split Site | I18: =VLOOKUP(("P"&$N$3),'[19]Funding Floor'!$A$3:$U$90,9,FALSE) -> 0 | J18: =VLOOKUP(("P"&$N$3),'[19]Funding Floor'!$A$3:$U$90,6,FALSE) -> 1438986.083 | N18: =VLOOKUP(("P"&$N$3),'[19]Funding Floor'!$A$3:$U$90,9,FALSE)-I18 -> 0
A20: 2020/21 Rates Funding | I20: =VLOOKUP(("P"&$N$3),'[19]Funding Floor'!$A$3:$U$90,11,FALSE) -> 45108 | J20: =VLOOKUP(("P"&$N$3),'[19]Funding Floor'!$A$3:$U$90,6,FALSE) -> 1438986.083 | N20: =VLOOKUP(("P"&$N$3),'[19]Funding Floor'!$A$3:$U$90,11,FALSE)-I20 -> 0
A22: 2020/21 Education Improvement Commissioning Pot | I22: =VLOOKUP(("P"&$N$3),'[19]Funding Floor'!$A$3:$U$90,12,FALSE) -> 3578.816302 | J22: =VLOOKUP(("P"&$N$3),'[19]Funding Floor'!$A$3:$U$90,6,FALSE) -> 1438986.083 | L22: =-SUM(I14:I22) -> -159050.9163 | N22: =VLOOKUP(("P"&$N$3),'[19]Funding Floor'!$A$3:$U$90,12,FALSE)-I22 -> 0
A25: 2020/21 Pupil Led Funding | L25: =L11+L22 -> 1279935.167 | N25: =VLOOKUP(("P"&$N$3),'[19]Funding Floor'!$A$3:$U$90,15,FALSE)-L25 -> 0
A27: October 2019 Pupil Number | H27: [A] | I27: =VLOOKUP(("P"&$N$3),'[19]Funding Floor'!$A$3:$U$90,17,FALSE) -> 396 | J27: =VLOOKUP(("P"&$N$3),'[19]Funding Floor'!$A$3:$U$90,6,FALSE) -> 1438986.083 | N27: =VLOOKUP(("P"&$N$3),'[19]Funding Floor'!$A$3:$U$90,17,FALSE)-I27 -> 0
A29: 2020/21 Pupil Led Funding (per pupil) | H29: [B] | L29: =L25/I27 -> 3232.159513 | N29: =VLOOKUP(("P"&$N$3),'[19]Funding Floor'!$A$3:$U$90,18,FALSE)-L29 -> 0
A32: 2017/18 calculated Funding Floor (FF) per Pupil | I32: =VLOOKUP(("P"&$N$3),'[19]Funding Floor'!$A$3:$U$90,4,FALSE) -> 3403.2458 | J32: =VLOOKUP(("P"&$N$3),'[19]Funding Floor'!$A$3:$U$90,6,FALSE) -> 1438986.083 | N32: =VLOOKUP(("P"&$N$3),'[19]Funding Floor'!$A$3:$U$90,4,FALSE)-I32 -> 0
A34: 2020/21 Funding Floor protection level | I34: 0.01
A36: Funding Floor per pupil | H36: [C] | L36: =I32*(1+I34) -> 3437.278258
A38: Shortfall to Funding Floor per pupil | H38: [D] = [C] - [B] | L38: =IF(L29<L36,L36-L29,0) -> 205.1187454
A42: 2020/21 Funding Floor Adjustment | H42: = [A] x [D] | L42: =L38*I27 -> 81227.02319 | N42: =VLOOKUP(("P"&$N$3),'[19]Funding Floor'!$A$3:$U$90,21,FALSE)-L42 -> 0
